fUST/lending_fUST_20240319
["ID","MTS","AMOUNT","RATE_DAILY","PERIOD"]
[319462370,1710792632543,-459.20355537,0.00020952,2]
[319462372,1710792632552,-710.05454217,0.00020979,2]
[319462374,1710792632563,-500.0,0.00020996,2]
[319462376,1710792632573,-1309.46,0.00020996,2]
[319462378,1710792632584,-500.0,0.00020996,2]
[319462380,1710792632597,-500.0,0.00020996,2]
[319462382,1710792632608,-500.0,0.00020996,2]
[319462384,1710792632618,-329.26630986,0.00020996,2]
[319462386,1710792632629,-500.0,0.00020996,2]
[319462388,1710792632640,-607.24,0.00020996,2]
[319462390,1710792632650,-151.0,0.00020996,2]
[319462392,1710792632659,-17502.22290271,0.00020997,2]
[319462478,1710792637804,-3363.21836419,0.00020997,2]
[319462481,1710792637815,-277.69983,0.00020997,2]
[319462485,1710792637834,-26460.22206932,0.00020997,2]
[319462488,1710792637843,-155.07598723,0.00020998,2]
[319462490,1710792637853,-1883.30131368,0.00020998,2]
[319462491,1710792637862,-269.39073036,0.00020998,2]
[319462492,1710792637872,-321.09469426,0.00020998,2]
[319462493,1710792637881,-1953.33408347,0.00020998,2]
[319462494,1710792637890,-311.71981373,0.00020998,2]
[319462495,1710792637900,-309.85850279,0.00020998,2]
[319462496,1710792637909,-179.18753222,0.00020998,2]
[319462497,1710792637920,-1475.78282209,0.00020998,2]
[319462498,1710792637929,-212.24459519,0.00020998,2]
[319462499,1710792637938,-187.45188662,0.00020998,2]
[319462500,1710792637947,-210.78974086,0.00020998,2]
[319462501,1710792637957,-280.79703052,0.00020998,2]
[319462502,1710792637966,-189.14594925,0.00020998,2]
[319462503,1710792637975,-2023.01123568,0.00020998,2]
[319462504,1710792637984,-3431.50690938,0.00020998,2]
[319462505,1710792637995,-184.76844647,0.00020998,2]
[319462506,1710792638004,-581.60943958,0.00020998,2]
[319462507,1710792638014,-500.0,0.00020998,2]
[319462508,1710792638023,-429.53958359,0.00020998,2]
[319462509,1710792638032,-1309.46,0.00020998,2]
[319462510,1710792638128,-1309.46,0.00020998,2]
[319462511,1710792638138,-153.116158,0.00020998,2]
[319462512,1710792638147,-500.0,0.00020998,2]
[319462513,1710792638156,-500.0,0.00020998,2]
[319462514,1710792638166,-401.80782838,0.00020998,2]
[319462515,1710792638178,-599.75937276,0.00020998,2]
[319462516,1710792638188,-607.24,0.00020998,2]
[319462517,1710792638197,-607.24,0.00020998,2]
[319462518,1710792638208,-151.0,0.00020998,2]
[319462519,1710792638217,-558.91521502,0.00020999,2]
[319462520,1710792638227,-8078.87102281,0.00020999,2]
[319462521,1710792638236,-500.0,0.00020999,2]
[319462522,1710792638245,-500.0,0.00020999,2]
[319462523,1710792638255,-531.3779663,0.00020999,2]
[319462524,1710792638264,-500.0,0.00020999,2]
[319462525,1710792638273,-501.58186076,0.00020999,2]
[319462526,1710792638282,-483.47850922,0.00020999,2]
[319462527,1710792638292,-571.25875255,0.00020999,2]
[319462528,1710792638301,-1309.46,0.00020999,2]
[319462529,1710792638310,-1309.46,0.00020999,2]
[319462530,1710792638319,-1309.46,0.00020999,2]
[319462531,1710792638329,-1309.46,0.00020999,2]
[319462532,1710792638338,-1309.46,0.00020999,2]
[319462533,1710792638347,-1309.46,0.00020999,2]
[319462534,1710792638356,-1309.46,0.00020999,2]
[319462535,1710792638365,-1309.46,0.00020999,2]
[319462536,1710792638374,-1309.46,0.00020999,2]
[319462537,1710792638383,-1309.46,0.00020999,2]
[319462538,1710792638392,-1309.46,0.00020999,2]
[319462539,1710792638402,-1309.46,0.00020999,2]
[319462540,1710792638411,-1309.46,0.00020999,2]
[319462541,1710792638420,-1309.46,0.00020999,2]
[319462542,1710792638429,-1309.46,0.00020999,2]
[319462543,1710792638438,-1309.46,0.00020999,2]
[319462544,1710792638447,-1309.46,0.00020999,2]
[319462545,1710792638457,-1309.46,0.00020999,2]
[319462546,1710792638466,-1309.59804586,0.00020999,2]
[319462547,1710792638475,-500.0,0.00020999,2]
[319462548,1710792638485,-500.0,0.00020999,2]
[319462549,1710792638496,-500.0,0.00020999,2]
[319462550,1710792638505,-500.0,0.00020999,2]
[319462551,1710792638514,-500.0,0.00020999,2]
[319462552,1710792638526,-500.0,0.00020999,2]
[319462553,1710792638535,-500.0,0.00020999,2]
[319462554,1710792638544,-500.0,0.00020999,2]
[319462555,1710792638553,-500.0,0.00020999,2]
[319462556,1710792638563,-500.0,0.00020999,2]
[319462557,1710792638573,-500.0,0.00020999,2]
[319462558,1710792638583,-500.0,0.00020999,2]
[319462559,1710792638593,-500.0,0.00020999,2]
[319462560,1710792638603,-500.0,0.00020999,2]
[319462561,1710792638613,-617.00860306,0.00020999,2]
[319462562,1710792638623,-607.24,0.00020999,2]
[319462563,1710792638634,-607.24,0.00020999,2]
[319462564,1710792638644,-607.24,0.00020999,2]
[319462565,1710792638654,-607.24,0.00020999,2]
[319462566,1710792638665,-607.24,0.00020999,2]
[319462567,1710792638676,-607.24,0.00020999,2]
[319462568,1710792638686,-607.24,0.00020999,2]
[319462569,1710792638696,-607.24,0.00020999,2]
[319462570,1710792638714,-607.24,0.00020999,2]
[319462571,1710792638724,-607.24,0.00020999,2]
[319462572,1710792638734,-607.24,0.00020999,2]
[319462573,1710792638744,-607.24,0.00020999,2]
[319462574,1710792638755,-607.24,0.00020999,2]
[319462575,1710792638766,-607.24,0.00020999,2]
[319462576,1710792638779,-607.24,0.00020999,2]
[319462577,1710792638790,-607.24,0.00020999,2]
[319462578,1710792638801,-607.24,0.00020999,2]
[319462579,1710792638812,-607.24,0.00020999,2]
[319462580,1710792638822,-607.38,0.00020999,2]
[319462581,1710792638832,-61466.4794265,0.00021,5]
[319462587,1710792639913,-6882.70140993,0.00021,5]
[319462588,1710792639924,-49559.96490252,0.00021,5]
[319462589,1710792639936,-339.64638281,0.00021,5]
[319462591,1710792639965,-6992.15225297,0.00021,5]
[319462683,1710792642786,-4373.83713951,0.00021,5]
[319462926,1710792645791,-1499.53917575,0.00021,5]
[319462927,1710792645803,-46762.24816821,0.00021,5]
[319463059,1710793831943,-832.85098726,0.000189,2]
[319463061,1710793831953,-273.667305,0.00019619,2]
[319463063,1710793831963,-275.2653267,0.0002,2]
[319463065,1710793831972,-683.01846586,0.00020001,2]
[319463067,1710793831982,-988.72106543,0.00020002,2]
[319463070,1710793831993,-1125.27955557,0.00020002,2]
[319463071,1710793832002,-677.3641142,0.00020344,2]
[319463073,1710793832012,-155.0,0.00020548,2]
[319463075,1710793832021,-201.2032644,0.000206,2]
[319463077,1710793832030,-171.05068637,0.00020789,2]
[319463079,1710793832039,-201.2032644,0.000208,2]
[319463081,1710793832048,-300.0,0.00020898,2]
[319463083,1710793832058,-500.0,0.00020899,2]
[319463084,1710793832067,-500.0,0.00020899,2]
[319463085,1710793832076,-500.0,0.00020899,2]
[319463086,1710793832085,-500.0,0.00020899,2]
[319463087,1710793832095,-500.0,0.00020899,2]
[319463088,1710793832104,-500.0,0.00020899,2]
[319463089,1710793832113,-500.0,0.00020899,2]
[319463090,1710793832122,-407.01238891,0.00020899,2]
[319463091,1710793832132,-9719.12024812,0.000209,2]
[319463092,1710793832141,-497.0381796,0.000209,2]
[319463094,1710793832150,-388.03000001,0.000209,2]
[319463095,1710793832160,-497.03817951,0.0002094,2]
[319463096,1710793832169,-509.81184101,0.00020977,2]
[319463098,1710793832179,-497.03817951,0.00020979,2]
[319463100,1710793832189,-885.77783156,0.00020998,2]
[319463102,1710793832198,-184.76844647,0.00020998,2]
[319463104,1710793832209,-2023.01123568,0.00020998,2]
[319463105,1710793832218,-500.0,0.00020999,2]
[319463107,1710793832227,-500.0,0.00020999,2]
[319463109,1710793832236,-500.0,0.00020999,2]
[319463111,1710793832245,-328.64714257,0.00020999,2]
[319463113,1710793832257,-171.35285743,0.00020999,2]
[319463115,1710793832268,-403.94793746,0.00020999,2]
[319463117,1710793832277,-203.23682034,0.00020999,2]
[319463119,1710793832286,-269.70738477,0.00020999,2]
[319463121,1710793832297,-230.29261523,0.00020999,2]
[319463123,1710793832306,-225.16738482,0.00020999,2]
[319463213,1710793837966,-274.83261518,0.00020999,2]
[319463215,1710793837977,-137.97030683,0.00020999,2]
[319463217,1710793837989,-362.02969317,0.00020999,2]
[319463219,1710793837999,-500.0,0.00020999,2]
[319463221,1710793838008,-500.0,0.00020999,2]
[319463223,1710793838018,-500.0,0.00020999,2]
[319463225,1710793838027,-500.0,0.00020999,2]
[319463227,1710793838036,-493.97882089,0.00020999,2]
[319463230,1710793838047,-7.69040295,0.00020999,2]
[319463232,1710793838056,-342.70959705,0.00020999,2]
[319463500,1710793843018,-157.29040295,0.00020999,2]
[319463501,1710793843027,-500.0,0.00020999,2]
[319463502,1710793843037,-500.0,0.00020999,2]
[319463503,1710793843048,-246.65753451,0.00020999,2]
[319463608,1710795032144,-176.847924,0.00018523,2]
[319463610,1710795032154,-1637.65546282,0.00018899,2]
[319463625,1710795032257,-1106.98414683,0.00018899,2]
[319463627,1710795032268,-555.23399151,0.000189,2]
[319463629,1710795032277,-24880.0,0.00019464,2]
[319463631,1710795032287,-171.0339857,0.000199,2]
[319463633,1710795032296,-275.2653267,0.0002,2]
[319463635,1710795032306,-159.74344553,0.000201,3]
[319463637,1710795032316,-155.0,0.00020548,2]
[319463639,1710795032326,-419.81655926,0.00020899,2]
[319463641,1710795032335,-419.81655922,0.00020899,2]
[319463643,1710795032345,-419.81655922,0.000209,2]
[319463645,1710795032354,-419.81655922,0.000209,2]
[319463647,1710795032364,-1755.13115523,0.000209,2]
[319463649,1710795032373,-1000.0,0.000209,2]
[319463651,1710795032384,-419.81655922,0.000209,2]
[319463653,1710795032394,-347.92672565,0.00020936,2]
[319463655,1710795032403,-1462.35714972,0.00020947,13]
[319463657,1710795032413,-347.92672565,0.00020972,2]
[319463659,1710795032423,-1682.98369481,0.00020998,2]
[319463819,1710795038161,-200.31761887,0.00020998,2]
[319463821,1710795038171,-363.99633771,0.00020998,2]
[319463823,1710795038182,-211.3755786,0.00020998,2]
[319463826,1710795038220,-288.6244214,0.00020998,2]
[319463827,1710795038230,-1569.42932561,0.00020999,2]
[319463828,1710795038239,-155.06512735,0.00020999,2]
[319463829,1710795038250,-155.06512735,0.00020999,2]
[319463830,1710795038260,-500.0,0.00020999,2]
[319463831,1710795038270,-500.0,0.00020999,2]
[319463832,1710795038279,-310.53506606,0.00020999,2]
[319463833,1710795038289,-500.0,0.00020999,2]
[319463834,1710795038299,-500.0,0.00020999,2]
[319463835,1710795038308,-39.02428025,0.00020999,2]
[319463878,1710795043222,-460.97571975,0.00020999,2]
[319463879,1710795043232,-500.0,0.00020999,2]
[319463880,1710795043241,-500.0,0.00020999,2]
[319463881,1710795043252,-500.0,0.00020999,2]
[319463882,1710795043261,-479.21951348,0.00020999,2]
[319463883,1710795043270,-500.0,0.00020999,2]
[319463884,1710795043279,-500.0,0.00020999,2]
[319463885,1710795043289,-620.64774803,0.00020999,2]
[319463886,1710795043298,-500.0,0.00020999,2]
[319463887,1710795043306,-500.0,0.00020999,2]
[319463888,1710795043315,-500.0,0.00020999,2]
[319463890,1710795043325,-501.67992114,0.00020999,2]
[319463891,1710795043334,-500.0,0.00020999,2]
[319463892,1710795043345,-500.0,0.00020999,2]
[319463893,1710795043354,-500.0,0.00020999,2]
[319463894,1710795043362,-629.18090354,0.00020999,2]
[319463895,1710795043372,-500.0,0.00020999,2]
[319463896,1710795043381,-502.61224864,0.00020999,2]
[319463897,1710795043392,-155.04031048,0.00020999,2]
[319463898,1710795043401,-500.0,0.00020999,2]
[319463899,1710795043411,-613.5330943,0.00020999,2]
[319463900,1710795043421,-500.0,0.00020999,2]
[319463901,1710795043430,-275.68953518,0.00020999,2]
[319463902,1710795043439,-500.0,0.00020999,2]
[319463903,1710795043449,-99.34080671,0.00020999,2]
[319463904,1710795043462,-415.85688571,0.00020999,2]
[319463905,1710795043471,-500.0,0.00020999,2]
[319463906,1710795043481,-500.0,0.00020999,2]
[319463907,1710795043490,-500.0,0.00020999,2]
[319463908,1710795043499,-500.0,0.00020999,2]
[319463909,1710795043508,-513.57117863,0.00020999,2]
[319463910,1710795043518,-500.0,0.00020999,2]
[319463911,1710795043527,-500.0,0.00020999,2]
[319463912,1710795043537,-500.0,0.00020999,2]
[319463913,1710795043547,-500.0,0.00020999,2]
[319463914,1710795043556,-500.0,0.00020999,2]
[319463915,1710795043564,-500.0,0.00020999,2]
[319463916,1710795043574,-500.0,0.00020999,2]
[319463917,1710795043583,-356.00851406,0.00020999,2]
[319463918,1710795043591,-500.0,0.00020999,2]
[319463919,1710795043601,-500.0,0.00020999,2]
[319463920,1710795043610,-500.0,0.00020999,2]
[319463921,1710795043619,-500.0,0.00020999,2]
[319463922,1710795043627,-500.0,0.00020999,2]
[319463923,1710795043638,-554.78,0.00020999,2]
[319463924,1710795043647,-3297.06207777,0.00021,5]
[319464130,1710796043155,-420.15599434,0.000189,2]
[319464131,1710796043185,-1862.76449759,0.0001899,2]
[319464133,1710796054799,280.10399623,0.000189,2]
[319464163,1710796232428,-168.471048,0.00019752,2]
[319464164,1710796232437,-1068.44497753,0.00019777,2]
[319464165,1710796232447,-1315.65251719,0.00019777,2]
[319464258,1710796238399,-4801.01357816,0.00019777,2]
[319464260,1710796238468,-412.14100692,0.00019777,2]
[319464261,1710796238477,-275.2653267,0.00020547,2]
[319464262,1710796238487,-155.0,0.00020548,2]
[319464263,1710796238496,-199.29068372,0.00020898,2]
[319464264,1710796238505,-3729.78782249,0.000209,2]
[319464274,1710796240407,-7160.18258016,0.000209,2]
[319464275,1710796240417,-1883.30131368,0.00020998,2]
[319464276,1710796240426,-500.0,0.00020998,2]
[319464277,1710796240435,-1891.04473986,0.00020999,2]
[319464278,1710796240445,-155.06512735,0.00020999,2]
[319464279,1710796240454,-500.0,0.00020999,2]
[319464280,1710796240463,-500.0,0.00020999,2]
[319464281,1710796240472,-500.0,0.00020999,2]
[319464282,1710796240482,-500.0,0.00020999,2]
[319464283,1710796240491,-289.51,0.00020999,2]
[319464284,1710796240500,-339.69989273,0.00020999,2]
[319464285,1710796240510,-500.0,0.00020999,2]
[319464286,1710796240519,-500.0,0.00020999,2]
[319464287,1710796240529,-564.25727124,0.00020999,2]
[319464288,1710796240539,-203.93699192,0.00020999,2]
[319464289,1710796240552,-500.0,0.00020999,2]
[319464290,1710796240562,-500.0,0.00020999,2]
[319464291,1710796240571,-500.0,0.00020999,2]
[319464292,1710796240581,-500.0,0.00020999,2]
[319464293,1710796240590,-552.27462181,0.00020999,2]
[319464294,1710796240688,-500.0,0.00020999,2]
[319464295,1710796240703,-500.0,0.00020999,2]
[319464296,1710796240713,-500.0,0.00020999,2]
[319464297,1710796240722,-500.0,0.00020999,2]
[319464298,1710796240732,-246.16947072,0.00020999,2]
[319464299,1710796240741,-500.0,0.00020999,2]
[319464300,1710796240751,-500.0,0.00020999,2]
[319464301,1710796240760,-500.0,0.00020999,2]
[319464302,1710796240770,-500.0,0.00020999,2]
[319464303,1710796240779,-500.0,0.00020999,2]
[319464304,1710796240789,-500.0,0.00020999,2]
[319464305,1710796240798,-501.10610095,0.00020999,2]
[319464306,1710796240810,-500.0,0.00020999,2]
[319464307,1710796240820,-500.0,0.00020999,2]
[319464308,1710796240835,-500.0,0.00020999,2]
[319464309,1710796240844,-500.0,0.00020999,2]
[319464310,1710796240853,-505.7,0.00020999,2]
[319464311,1710796240863,-500.0,0.00020999,2]
[319464312,1710796240873,-500.0,0.00020999,2]
[319464313,1710796240882,-500.0,0.00020999,2]
[319464314,1710796240892,-500.69313384,0.00020999,2]
[319464315,1710796240902,-500.0,0.00020999,2]
[319464316,1710796240911,-500.0,0.00020999,2]
[319464317,1710796240920,-500.0,0.00020999,2]
[319464318,1710796240929,-500.0,0.00020999,2]
[319464319,1710796240938,-500.0,0.00020999,2]
[319464320,1710796240947,-500.0,0.00020999,2]
[319464321,1710796240956,-500.0,0.00020999,2]
[319464322,1710796240965,-500.0,0.00020999,2]
[319464323,1710796240975,-500.0,0.00020999,2]
[319464324,1710796240984,-288.16927514,0.00020999,2]
[319464325,1710796240993,-500.0,0.00020999,2]
[319464326,1710796241002,-500.0,0.00020999,2]
[319464327,1710796241012,-500.0,0.00020999,2]
[319464328,1710796241020,-500.0,0.00020999,2]
[319464329,1710796241029,-500.0,0.00020999,2]
[319464330,1710796241038,-500.0,0.00020999,2]
[319464331,1710796241047,-500.0,0.00020999,2]
[319464332,1710796241058,-500.0,0.00020999,2]
[319464333,1710796241066,-500.0,0.00020999,2]
[319464334,1710796241075,-500.0,0.00020999,2]
[319464335,1710796241084,-500.0,0.00020999,2]
[319464336,1710796241093,-500.0,0.00020999,2]
[319464337,1710796241102,-500.0,0.00020999,2]
[319464338,1710796241111,-500.0,0.00020999,2]
[319464339,1710796241120,-500.0,0.00020999,2]
[319464340,1710796241129,-522.4,0.00020999,2]
[319464341,1710796241138,-500.0,0.00020999,2]
[319464342,1710796241147,-500.0,0.00020999,2]
[319464343,1710796241156,-24966.82430547,0.00021,5]
[319464621,1710796246489,-39693.63481231,0.00021,5]
[319464753,1710796356183,186.73599748,0.000189,2]
[319464837,1710797438866,-168.471048,0.00019804,2]
[319464839,1710797438876,-2744.63960965,0.00019827,2]
[319464841,1710797438885,-114.36485075,0.00019828,2]
[319464847,1710797438930,-621.10261512,0.00019828,2]
[319465132,1710797443639,-14411.81804263,0.00019828,2]
[319465134,1710797443649,-275.2653267,0.0002,2]
[319465136,1710797443658,-155.0,0.00020548,2]
[319465138,1710797443667,-171.01413614,0.00020868,2]
[319465140,1710797443677,-1000.0,0.000209,2]
[319465142,1710797443686,-171.01413614,0.000209,2]
[319465144,1710797443695,-585.01681303,0.0002096,3]
[319465146,1710797443706,-615.25445103,0.0002096,3]
[319465149,1710797443717,-237.33957872,0.0002096,3]
[319465151,1710797443726,-500.0,0.00020967,2]
[319465152,1710797443735,-329.26630986,0.00020967,2]
[319465155,1710797443744,-4457.52529733,0.00020968,2]
[319465262,1710797446735,-139826.8286631,0.00020968,2]
[319465264,1710797446744,-304.49442129,0.00020998,2]
[319465266,1710797446754,-1000.0,0.00020999,2]
[319465268,1710797446763,-17502.22290271,0.00020999,2]
[319465270,1710797446772,-500.0,0.00020999,2]
[319465272,1710797446781,-500.0,0.00020999,2]
[319465274,1710797446790,-500.0,0.00020999,2]
[319465277,1710797446801,-309.46,0.00020999,2]
[319465278,1710797446811,-500.0,0.00020999,2]
[319465280,1710797446820,-55266.06502947,0.00021,5]
[319465847,1710798631939,-605.01801761,0.00019813,2]
[319465848,1710798631998,-1278.81696037,0.00019813,2]
[319465850,1710798632008,-2744.63960965,0.00019814,2]
[319465852,1710798632017,-192.575343,0.00019826,2]
[319465854,1710798632027,-196.499368,0.00019826,2]
[319465855,1710798632036,-300.0,0.00019916,2]
[319465856,1710798632046,-7611.980586,0.00019917,2]
[319465857,1710798632055,-155.0,0.00020548,2]
[319465858,1710798632064,-294.08370709,0.00020578,2]
[319465859,1710798632073,-192.575343,0.00020817,2]
[319465860,1710798632083,-196.499368,0.00020817,2]
[319465861,1710798632094,-1000.0,0.000209,2]
[319465863,1710798632103,-188.11098368,0.000209,2]
[319465865,1710798632113,-41155.76294323,0.000209,2]
[319465867,1710798632123,-500.0,0.00020967,2]
[319465868,1710798632132,-500.0,0.00020967,2]
[319465869,1710798632141,-151.0,0.00020967,2]
[319465870,1710798632151,-1092.09700345,0.00020998,2]
[319465871,1710798632161,-164.35290458,0.00020998,2]
[319465872,1710798632170,-304.49442129,0.00020998,2]
[319465873,1710798632180,-1475.78282209,0.00020998,2]
[319465874,1710798632189,-184.76844647,0.00020998,2]
[319465875,1710798632199,-309.96436471,0.00020998,2]
[319465876,1710798632208,-15272.02320787,0.00020998,2]
[319465877,1710798632218,-210.78974086,0.00020998,2]
[319465878,1710798632229,-500.0,0.00020998,2]
[319465879,1710798632240,-448.16475519,0.00020998,2]
[319465880,1710798632249,-289.2429693,0.00020999,2]
[319465916,1710798637826,-362.075,0.00020999,2]
[319466080,1710798639808,-271.01651644,0.00020999,2]
[319466082,1710798639817,-588.65,0.00020999,2]
[319466084,1710798639826,-588.65,0.00020999,2]
[319466087,1710798639835,-588.65,0.00020999,2]
[319466089,1710798639845,-588.65,0.00020999,2]
[319466091,1710798639854,-588.65,0.00020999,2]
[319466094,1710798639865,-588.65,0.00020999,2]
[319466097,1710798639874,-588.65,0.00020999,2]
[319466100,1710798639883,-588.65,0.00020999,2]
[319466103,1710798639892,-588.65,0.00020999,2]
[319466106,1710798639901,-588.65,0.00020999,2]
[319466109,1710798639910,-492.48348356,0.00020999,2]
[319466116,1710798639935,-96.16651644,0.00020999,2]
[319466119,1710798639944,-588.65,0.00020999,2]
[319466122,1710798639953,-588.65,0.00020999,2]
[319466125,1710798639963,-588.65,0.00020999,2]
[319466128,1710798639972,-588.65,0.00020999,2]
[319466131,1710798639981,-588.65,0.00020999,2]
[319466134,1710798639991,-588.65,0.00020999,2]
[319466137,1710798640001,-588.65,0.00020999,2]
[319466140,1710798640010,-588.65,0.00020999,2]
[319466143,1710798640019,-588.65,0.00020999,2]
[319466146,1710798640029,-588.65,0.00020999,2]
[319466149,1710798640038,-588.65,0.00020999,2]
[319466151,1710798640047,-588.65,0.00020999,2]
[319466154,1710798640056,-588.85413529,0.00020999,2]
[319466157,1710798640065,-607.24,0.00020999,2]
[319466160,1710798640075,-46505.37876564,0.00021,5]
[319466883,1710798645783,-42000.0,0.00021,5]
[319466891,1710798645845,-43660.40357212,0.00021,5]
[319469282,1710798862946,377.85,0.00012,7]
[319469295,1710798979199,3362.67904977,0.00012,2]
[319469296,1710799103974,155.43150981,0.00012,2]
[319470202,1710799843003,-280.13671817,0.00019747,2]
[319491244,1710800070342,15000.0,0.00017,2]
[319492775,1710800168604,-165.54,0.0002408,35]
[319492776,1710800168636,-158.46,0.0002408,35]
[319492777,1710800168669,-520.0,0.0002408,35]
[319492778,1710800168698,-520.0,0.0002408,35]
[319492779,1710800168725,-167.2,0.0002409,35]
[319492780,1710800168752,-520.0,0.0002409,35]
[319492781,1710800168779,-520.0,0.0002409,35]
[319492782,1710800168805,-520.0,0.0002409,35]
[319492783,1710800168831,-526.1,0.0002409,35]
[319492784,1710800168857,-171.16,0.000241,35]
[319492785,1710800168887,-520.0,0.000241,35]
[319492786,1710800168914,-520.0,0.000241,35]
[319492787,1710800168941,-520.0,0.000241,35]
[319492788,1710800168969,-520.0,0.000241,35]
[319492789,1710800168994,-150.5,0.00024134,35]
[319492790,1710800169021,-150.5,0.00024134,35]
[319492791,1710800169047,-150.5,0.00024144,35]
[319492792,1710800169072,-150.5,0.00024144,35]
[319492793,1710800169100,-150.5,0.00024144,35]
[319492794,1710800169126,-150.5,0.00024144,35]
[319492795,1710800169153,-150.5,0.00024154,35]
[319492796,1710800169179,-150.5,0.00024154,35]
[319492797,1710800169205,-150.5,0.00024154,35]
[319492798,1710800169232,-150.5,0.00024154,35]
[319492799,1710800169258,-150.5,0.00024154,35]
[319492800,1710800198419,-258.495449,0.00026575,120]
[319492801,1710800198449,-20517.544551,0.00027,120]
[319492802,1710800199080,5000.0,0.00019,2]
[319492874,1710801032175,-191.77351514,0.00019448,2]
[319492875,1710801032185,-2744.63960965,0.00019449,2]
[319492876,1710801032194,-1883.83497798,0.0001945,2]
[319492877,1710801032203,-1303.7493865,0.00019462,2]
[319492878,1710801032212,-1050.0426402,0.00019587,2]
[319492879,1710801032221,-155.0,0.00020548,2]
[319492880,1710801032230,-365.64047324,0.00020578,2]
[319492881,1710801032239,-171.17129563,0.00020789,2]
[319492882,1710801032248,-745.06110892,0.00020899,2]
[319492883,1710801032257,-440.63113193,0.00020899,2]
[319492884,1710801032269,-59.36886807,0.00020899,2]
[319492885,1710801032279,-6552.00398329,0.000209,2]
[319492893,1710801032393,-13200.0,0.000209,2]
[319492895,1710801032405,-36452.0427293,0.000209,2]
[319492897,1710801032414,-500.0,0.00020997,2]
[319492899,1710801032424,-326.89,0.00020997,2]
[319492901,1710801032433,-500.0,0.00020997,2]
[319492903,1710801032443,-500.0,0.00020997,2]
[319492905,1710801032452,-500.0,0.00020997,2]
[319492907,1710801032461,-500.0,0.00020997,2]
[319492909,1710801032471,-376.10048652,0.00020997,2]
[319492911,1710801032480,-500.0,0.00020997,2]
[319492913,1710801032490,-246.24251867,0.00020997,2]
[319492915,1710801032500,-500.0,0.00020997,2]
[319492917,1710801032510,-500.0,0.00020997,2]
[319492919,1710801032519,-500.0,0.00020997,2]
[319492921,1710801032530,-500.0,0.00020997,2]
[319492923,1710801032539,-500.0,0.00020997,2]
[319492925,1710801032549,-500.0,0.00020997,2]
[319492927,1710801032558,-500.0,0.00020997,2]
[319492929,1710801032567,-737.2,0.00020997,2]
[319492931,1710801032577,-737.2,0.00020997,2]
[319492933,1710801032586,-527.46,0.00020997,2]
[319492935,1710801032596,-527.46,0.00020997,2]
[319492937,1710801032605,-500.0,0.00020997,2]
[319492939,1710801032614,-500.0,0.00020997,2]
[319492941,1710801032624,-1382.95621485,0.00020998,2]
[319492943,1710801032634,-381.78579349,0.00020998,2]
[319492945,1710801032643,-389.64546422,0.00020998,2]
[319492947,1710801032653,-204.89534336,0.00020998,2]
[319492948,1710801032662,-1149.46415486,0.00020998,2]
[319492950,1710801032672,-251.67270412,0.00020998,2]
[319492953,1710801032682,-184.48925657,0.00020998,2]
[319492955,1710801032692,-27384.09238536,0.00020998,2]
[319492956,1710801032701,-3222.73716798,0.00020998,2]
[319492958,1710801032711,-169.28728127,0.00020998,2]
[319492960,1710801032721,-551.16066515,0.00020998,2]
[319492963,1710801032730,-750.10691281,0.00020998,2]
[319492964,1710801032740,-933.80097195,0.00020998,2]
[319492966,1710801032750,-340.67513156,0.00020998,2]
[319492968,1710801032759,-188.26246721,0.00020998,2]